bitfinex/quotes_ETHUSD_20240810
["timestamp","ask_amount","ask_price","bid_price","bid_amount"]
[1723303620509,4.96013,2621.9,2621.6,0.25111694]
[1723303620801,1.9071,2621.8,2621.6,0.25111694]
[1723303621016,1.90715,2621.7,2621.6,0.25111694]
[1723303621306,1.90742,2621.4,2620.9,2.358]
[1723303621516,1.146,2621.3,2621.0,0.25170162]
[1723303624182,1.146,2621.3,2620.7,11.75584]
[1723303624183,3.05349,2621.3,2620.7,11.75584]
[1723303624505,3.05349,2621.3,2621.1,0.25161001]
[1723303624708,3.05349,2621.3,2621.2,0.251513]
[1723303624881,1.146,2621.3,2621.2,0.251513]
[1723303625081,1.146,2621.3,2620.8,1.475584]
[1723303625283,1.146,2621.3,2620.7,4.26584]
[1723303625284,1.146,2621.3,2621.2,0.251513]
[1723303625773,1.146,2621.3,2620.7,4.26584]
[1723303625972,1.146,2621.3,2621.2,0.251513]
[1723303626211,1.90726,2621.6,2621.0,2.358]
[1723303626417,1.90712,2621.8,2621.2,2.158983]
[1723303626613,1.90712,2621.8,2621.3,2.65781512]
[1723303626906,1.146,2621.9,2621.4,1.90737]
[1723303627071,1.146,2621.9,2621.5,0.07628368]
[1723303627279,1.146,2621.9,2621.5,0.99976893]
[1723303627594,1.90682,2622.2,2621.6,1.90722]
[1723303627793,3.05282,2622.2,2621.7,2.43427743]
[1723303628231,1.146,2622.2,2621.7,4.26515]
[1723303628434,3.0528,2622.2,2621.7,4.26515]
[1723303628657,3.0528,2622.2,2621.8,0.25075273]
[1723303629019,3.0528,2622.2,2621.7,4.89001573]
[1723303629242,1.146,2622.2,2621.9,0.25063957]
[1723303629443,3.05268,2622.4,2621.8,2.23410007]
[1723303629766,1.90668,2622.4,2621.9,0.96287281]
[1723303630654,1.90668,2622.4,2622.0,2.3443]
[1723303630954,1.90668,2622.4,2622.1,0.25023492]
[1723303631145,1.90647,2622.7,2622.1,0.25023492]
[1723303631328,1.90647,2622.7,2622.2,0.07626487]
[1723303631730,1.90639,2622.8,2622.3,0.25000865]
[1723303631934,1.90648,2622.7,2622.2,0.07626487]
[1723303632156,1.90651,2622.6,2622.4,0.24989553]
[1723303632343,1.90651,2622.6,2622.2,0.56190403]
[1723303632344,1.90651,2622.6,2622.2,0.56190229]
[1723303632548,1.90651,2622.6,2622.5,0.24978241]
[1723303632924,1.90651,2622.6,2622.2,0.48563916]
[1723303633122,1.90639,2622.8,2622.3,0.25000865]
[1723303633320,1.90639,2622.8,2622.3,0.27187709]
[1723303633661,1.90659,2622.5,2622.4,0.24989553]
[1723303634328,1.90668,2622.4,2622.0,2.3443]
[1723303634533,1.9068,2622.2,2622.1,0.25023492]
[1723303634861,1.9068,2622.2,2621.3,14.44094732]
[1723303634862,1.90709,2621.8,2621.3,2.56782732]
[1723303635257,3.81424,2621.8,2621.3,2.56782732]
[1723303635490,1.90709,2621.8,2621.3,2.56782732]
[1723303635694,1.90709,2621.8,2621.4,0.25678273]
[1723303637067,1.90709,2621.8,2621.3,2.56782732]
[1723303637279,1.90726,2621.6,2621.3,0.22352732]
[1723303637660,1.90726,2621.6,2621.1,2.3443]
[1723303639097,1.90732,2621.5,2620.9,9.39768]
[1723303639786,1.90742,2621.4,2620.8,2.3443]
[1723303639986,1.90754,2621.2,2620.5,11.7423]
[1723303640163,1.90754,2621.2,2620.5,4.25228]
[1723303640164,3.81512,2621.2,2620.5,4.25228]
[1723303640365,1.90764,2621.1,2620.5,4.25228]
[1723303641084,1.90754,2621.2,2620.5,4.25227]
[1723303641598,1.90754,2621.2,2620.6,1.90795]
[1723303641794,2.274,2621.3,2620.7,1.90786]
[1723303642092,2.274,2621.3,2620.7,2.15966085]
[1723303643022,4.18146,2621.3,2620.7,2.15966085]
[1723303646328,1.90752,2621.2,2620.7,2.15966085]
[1723303646531,1.90752,2621.2,2620.7,0.25180085]
[1723303646742,1.9076,2621.1,2620.7,0.95461314]
[1723303648348,1.90768,2621.0,2620.7,0.95461314]
[1723303649757,1.90768,2621.0,2620.7,0.25180085]
[1723303650264,1.90768,2621.0,2620.5,4.2523]
[1723303650581,1.90768,2621.0,2620.8,0.25168759]
[1723303650728,1.90774,2620.9,2620.8,0.25168759]
[1723303650913,1.90782,2620.8,2620.3,4.30603]
[1723303651116,1.90782,2620.8,2620.4,1.179603]
[1723303651716,1.90768,2621.0,2620.4,1.179603]
[1723303651919,3.8154,2621.0,2620.4,1.179603]
[1723303652357,1.90754,2621.2,2620.7,2.3979]
[1723303652558,1.90754,2621.2,2620.7,4.30578]
[1723303652862,1.90749,2621.3,2620.8,0.430578]
[1723303653077,1.90749,2621.3,2620.7,4.30578]
[1723303654032,1.90749,2621.3,2620.8,0.25190112]
[1723303654233,1.90749,2621.3,2620.7,4.30578]
[1723303654469,1.90749,2621.3,2620.9,0.25178787]
[1723303654673,1.90749,2621.3,2620.8,0.25190112]
[1723303654886,1.90749,2621.3,2620.8,0.70766923]
[1723303655195,1.90749,2621.3,2620.9,0.25178787]
[1723303658853,3.815,2621.3,2620.9,0.25178787]
[1723303659203,3.0,2621.4,2620.9,0.25178787]
[1723303659204,8.06688,2621.0,2620.9,0.25178787]
[1723303659365,1.9081,2620.5,2620.0,2.3979]
[1723303659558,1.90811,2620.4,2620.1,0.24463005]
[1723303659902,3.05511,2620.4,2620.1,0.24463005]
[1723303660193,3.05511,2620.4,2619.8,2.3979]
[1723303660593,1.147,2620.4,2620.2,0.24451673]
[1723303660894,1.147,2620.4,2619.9,0.2448567]
[1723303661106,1.147,2620.4,2620.3,0.24440343]
[1723303661254,1.147,2620.4,2619.9,0.621498]
[1723303661452,1.147,2620.4,2620.3,0.24440343]
[1723303661715,1.90808,2620.5,2619.9,0.621498]
[1723303662002,1.90808,2620.5,2620.3,0.24440343]
[1723303662156,1.90808,2620.5,2620.0,0.4927928]
[1723303662500,1.90812,2620.4,2620.0,0.73753617]
[1723303666677,1.90818,2620.3,2620.0,0.73753617]
[1723303666890,1.90825,2620.2,2620.0,0.24474337]
[1723303667272,1.90818,2620.3,2620.0,0.24474337]
[1723303667469,1.90818,2620.3,2619.8,2.3979]
[1723303667698,1.90818,2620.3,2620.1,0.24463005]
[1723303667897,1.90818,2620.3,2619.8,2.3979]
[1723303668108,3.81642,2620.3,2620.2,0.24451673]
[1723303668297,1.90827,2620.2,2619.6,2.3979]
[1723303668465,1.90827,2620.2,2619.6,4.30658]
[1723303669495,1.90818,2620.3,2619.7,1.9086]
[1723303669681,1.90811,2620.4,2619.8,2.33914]
[1723303670089,4.25192,2620.6,2619.9,1.90843]
[1723303670292,2.3439,2620.6,2619.9,1.90843]
[1723303671076,1.90811,2620.4,2619.8,0.43065]
[1723303671282,1.90811,2620.4,2619.9,0.233925]
[1723303672114,1.90811,2620.4,2620.0,0.24474337]
[1723303672314,1.90807,2620.5,2620.0,0.24474337]
[1723303672315,1.90818,2620.3,2620.0,0.24474337]
[1723303672820,1.90818,2620.3,2619.8,0.43065]
[1723303673007,1.90818,2620.3,2620.1,0.24463005]
[1723303673201,1.90818,2620.3,2619.9,0.23392]
[1723303673411,1.90812,2620.4,2620.2,0.24451673]
[1723303673583,1.90812,2620.4,2619.8,2.33913]
[1723303673784,1.90812,2620.4,2619.9,0.24508917]
[1723303674418,1.90812,2620.4,2619.9,0.69436609]
[1723303674722,3.81615,2620.5,2619.9,2.60280609]
[1723303674887,3.81616,2620.5,2619.9,2.60280609]
[1723303675088,1.90811,2620.4,2619.9,2.60280609]
[1723303675418,1.90811,2620.4,2619.9,0.69436609]
[1723303676295,1.90811,2620.4,2620.0,0.30335461]
[1723303676722,1.90811,2620.4,2620.1,0.24486251]
[1723303677424,1.90811,2620.4,2620.2,0.2447492]
[1723303677626,1.90811,2620.4,2619.9,0.44927692]
[1723303677841,1.90807,2620.5,2620.3,0.2446359]
[1723303678023,1.90807,2620.5,2620.0,2.63214569]
[1723303678389,3.81584,2620.7,2620.1,0.24486251]
[1723303678591,1.90786,2620.8,2620.1,0.3211905]
[1723303678818,1.90786,2620.8,2620.2,2.3533]
[1723303678991,7.29,2621.2,2620.4,2.3533]
[1723303679192,3.81516,2621.2,2620.5,1.98429293]
[1723303679541,2.3978,2621.3,2620.6,0.24429603]
[1723303679705,1.90741,2621.4,2620.7,6.24525419]
[1723303679894,1.90741,2621.4,2620.8,0.72525918]
[1723303680098,1.90741,2621.4,2620.8,0.96945691]
[1723303680839,1.90741,2621.4,2620.8,2.87725691]
[1723303681496,4.30506,2621.6,2620.9,1.90773]
[1723303681497,1.90726,2621.6,2620.9,1.90773]
[1723303681696,3.81455,2621.6,2621.0,0.28771869]
[1723303681901,3.81455,2621.6,2621.0,0.53168993]
[1723303682128,1.90726,2621.6,2621.0,0.53168993]
[1723303682297,1.90733,2621.5,2621.1,2.3533]
[1723303682611,1.90733,2621.5,2621.1,2.597158]
[1723303683244,1.90726,2621.6,2621.1,2.597158]
[1723303683812,1.90726,2621.6,2621.1,4.9552228]
[1723303684193,4.30491,2621.8,2621.1,4.9552228]
[1723303684416,1.90711,2621.8,2621.1,4.9552228]
[1723303684617,1.90711,2621.8,2621.1,4.9551928]
[1723303685166,1.90711,2621.8,2621.2,1.9838053]
[1723303685567,1.90711,2621.8,2621.3,0.24324689]
[1723303685729,3.0,2621.9,2621.3,0.24324689]
[1723303685730,1.90696,2622.0,2621.4,0.07628431]
[1723303686071,1.90682,2622.2,2621.6,2.3533]
[1723303686575,2.097348,2622.4,2621.7,0.24249229]
[1723303686731,1.90668,2622.4,2621.7,2.41677978]
[1723303686929,1.90671,2622.4,2621.7,2.41677978]
[1723303687623,1.9068,2622.2,2621.7,0.50969978]
[1723303687931,1.90694,2622.0,2621.7,0.24249229]
[1723303688116,4.30461,2622.2,2621.7,0.24249229]
[1723303688312,4.30461,2622.2,2621.5,1.90729]
[1723303688561,1.90687,2622.1,2621.8,0.24226968]
[1723303688718,1.90687,2622.1,2621.5,1.90729]
[1723303688918,1.90687,2622.1,2621.9,0.24215651]
[1723303689217,1.90684,2622.2,2622.0,0.24204335]
[1723303689448,1.90684,2622.2,2621.6,2.3533]
[1723303689449,2.288191,2622.2,2621.6,2.3533]
[1723303689660,1.90684,2622.2,2622.1,0.24191686]
[1723303689821,1.90684,2622.2,2621.6,2.3533]
[1723303690020,1.90684,2622.2,2621.7,0.24236951]
[1723303690256,1.90667,2622.4,2621.7,2.14951951]
[1723303690440,1.90672,2622.3,2621.7,2.14951951]
[1723303691333,1.9068,2622.2,2621.7,0.24236951]
[1723303691938,1.005647,2622.4,2621.7,0.24236951]
[1723303692141,3.81416,2621.8,2621.7,0.24236951]
[1723303692669,1.90718,2621.7,2621.3,2.3987]
[1723303692976,1.90718,2621.7,2621.1,1.90759]
[1723303693186,1.90718,2621.7,2621.1,4.30629]
[1723303693468,1.90705,2621.9,2621.2,3.087089]
[1723303693673,1.90705,2621.9,2621.3,2.3987]
[1723303693841,1.90697,2622.0,2621.3,4.30615]
[1723303694355,1.90701,2621.9,2621.3,4.30615]
[1723303694666,1.90697,2622.0,2621.3,4.30615]
[1723303694874,1.90723,2621.6,2621.1,2.3987]
[1723303695467,1.90718,2621.7,2621.1,2.3987]
[1723303695632,1.90718,2621.7,2621.1,4.30628]
[1723303695835,1.90718,2621.7,2621.2,0.430628]
[1723303696027,3.0,2621.8,2621.2,2.338138]
[1723303696250,1.90697,2622.0,2621.2,0.430628]
[1723303696635,1.90697,2622.0,2621.4,1.90735]
[1723303696855,1.90697,2622.0,2621.5,2.3987]
[1723303698567,1.90708,2621.9,2621.5,2.3987]
[1723303701232,1.90708,2621.9,2621.5,2.829309]
[1723303701771,3.81379,2622.1,2621.5,2.829309]
[1723303701969,1.90687,2622.1,2621.6,0.24245063]
[1723303702481,1.90702,2621.9,2621.6,0.24245063]
[1723303703777,1.90687,2622.1,2621.6,0.24245063]
[1723303704098,1.90687,2622.1,2621.6,0.50656569]
[1723303704964,3.0,2622.2,2621.6,0.50656569]
[1723303704965,4.90684,2622.2,2621.6,0.50656569]
[1723303705772,3.0,2622.2,2621.6,0.50656569]
[1723303705974,4.9068,2622.2,2621.6,0.50656569]
[1723303706508,3.0,2622.2,2621.7,0.07627848]
[1723303706672,1.90675,2622.3,2621.8,2.3987]
[1723303706867,1.90675,2622.3,2621.8,2.64092427]
[1723303707115,1.90675,2622.3,2621.8,2.3987]
[1723303707412,3.81354,2622.3,2621.8,2.3987]
[1723303707568,3.0,2622.2,2621.9,0.24203637]
[1723303708212,1.90675,2622.3,2621.9,0.24203637]
[1723303708380,3.81352,2622.3,2621.9,0.24203637]
[1723303708714,3.0,2622.2,2621.9,0.24203637]
[1723303709132,1.90694,2622.0,2621.9,0.24203637]
[1723303709274,3.81388,2622.0,2621.9,0.24203637]
[1723303709475,1.90715,2621.8,2621.4,2.3987]
[1723303709670,3.8143,2621.8,2621.4,2.3987]
[1723303709885,1.90715,2621.8,2621.5,0.24248909]
[1723303710520,1.90723,2621.6,2621.5,0.24248909]
[1723303710873,1.90723,2621.6,2621.1,2.2783]
[1723303711108,1.90723,2621.6,2621.5,0.24257717]
[1723303711321,1.90723,2621.6,2621.1,2.2783]
[1723303711475,1.90723,2621.6,2621.5,0.24257717]
[1723303711800,1.90723,2621.6,2621.1,2.2783]
[1723303711801,1.9073,2621.5,2621.1,2.2783]
[1723303711987,1.90723,2621.6,2621.5,0.24257717]
[1723303712183,1.90723,2621.6,2621.1,2.696893]
[1723303712689,1.90723,2621.6,2621.2,0.2430049]
[1723303715310,3.81452,2621.6,2621.2,0.2430049]
[1723303715819,1.90723,2621.6,2621.2,0.2430049]
[1723303716023,1.90723,2621.6,2621.2,0.72775769]
[1723303717710,4.19842,2621.8,2621.2,2.63525769]
[1723303717886,1.90696,2622.0,2621.3,1.90744]
[1723303718211,10.29,2622.4,2621.4,4.18563]
[1723303718212,1.90692,2622.1,2621.4,4.18563]
[1723303718435,1.90692,2622.1,2621.5,2.40977335]
[1723303718644,3.0,2622.1,2621.5,2.40977335]
[1723303718802,1.90683,2622.2,2621.6,2.14978684]
[1723303719005,1.90683,2622.2,2621.7,0.07627651]
[1723303719205,1.90683,2622.2,2621.7,0.53223207]
[1723303719403,1.90683,2622.2,2621.8,2.52069781]
[1723303720627,4.90672,2622.3,2621.8,2.52069781]
[1723303720935,4.90672,2622.3,2621.8,2.2783]
[1723303721299,1.90668,2622.4,2621.8,2.8263462]
[1723303721537,3.81338,2622.4,2621.8,2.8263462]
[1723303721842,3.81338,2622.4,2621.9,0.24228464]
[1723303722221,1.90668,2622.4,2621.9,0.24228464]
[1723303725136,4.19782,2622.6,2622.1,2.2783]
[1723303725137,1.90652,2622.6,2622.1,2.2783]
[1723303725538,1.90652,2622.6,2622.2,0.24194519]
[1723303725720,1.90637,2622.8,2622.2,0.24194519]
[1723303726643,1.90649,2622.7,2622.2,0.24194519]
[1723303727355,1.90637,2622.8,2622.2,0.24194519]
[1723303727356,1.9064,2622.8,2622.2,0.24194519]
[1723303727555,1.90644,2622.7,2622.2,0.68465471]
[1723303727761,1.90644,2622.7,2622.2,0.24194519]
[1723303728526,3.81264,2622.9,2622.2,2.22495703]
[1723303728726,3.81264,2622.9,2622.3,0.07626184]
[1723303728727,1.90636,2622.8,2622.3,0.07626184]
[1723303729069,1.90636,2622.8,2622.4,0.24147606]
[1723303729462,1.90636,2622.8,2622.2,1.90675]
[1723303729775,1.90636,2622.8,2622.5,0.24136295]
[1723303729922,1.90636,2622.8,2622.2,2.515937]
[1723303730127,1.90629,2622.9,2622.6,0.2409776]
[1723303730443,4.90621,2623.0,2622.7,0.24086451]
[1723303730778,1.90621,2623.0,2622.4,4.25284]
[1723303730942,9.94947,2623.1,2622.5,0.43290989]
[1723303730943,1.9063,2622.9,2622.5,0.43290989]
[1723303731268,1.9064,2622.8,2622.5,0.24109071]
[1723303731772,3.81264,2622.9,2622.5,0.24109071]
[1723303732280,1.9063,2622.9,2622.5,0.24109071]
[1723303732476,3.81264,2622.9,2622.5,0.24109071]
[1723303732777,1.90636,2622.8,2622.5,0.24109071]
[1723303733400,1.9063,2622.9,2622.5,0.24109071]
[1723303733401,1.90645,2622.7,2622.5,0.24109071]
[1723303733679,1.90645,2622.7,2622.2,2.3462]
[1723303733881,1.90645,2622.7,2622.6,0.24093759]
[1723303734177,1.90645,2622.7,2622.2,2.3462]
[1723303734384,8.0433,2623.1,2622.6,0.24093759]
[1723303734385,1.90638,2622.8,2622.6,0.24093759]
[1723303734583,1.90638,2622.8,2622.2,2.3462]
[1723303734745,1.90638,2622.8,2622.7,0.24082449]
[1723303734946,1.90638,2622.8,2622.2,4.25294]
[1723303735141,1.90638,2622.8,2622.7,0.24082449]
[1723303735357,1.90638,2622.8,2622.2,4.25294]
[1723303735568,1.90638,2622.8,2622.7,0.24082449]
[1723303735781,1.90638,2622.8,2622.2,4.25294]
[1723303736001,1.90638,2622.8,2622.7,0.24082449]
[1723303736595,1.90638,2622.8,2622.3,2.40825234]
[1723303736798,1.90638,2622.8,2622.7,0.24082449]
[1723303737305,1.90638,2622.8,2622.3,2.40825234]
[1723303737306,1.90625,2623.0,2622.3,2.771494]
[1723303737453,1.90625,2623.0,2622.7,0.24082449]
[1723303737657,1.90625,2623.0,2622.4,0.4678264]
[1723303737858,1.90625,2623.0,2622.5,0.24105069]
[1723303738159,1.90625,2623.0,2622.5,2.58725069]
[1723303738386,3.81252,2623.0,2622.5,2.58725069]
[1723303738597,1.9063,2622.9,2622.5,3.09104688]
[1723303738996,1.90625,2623.0,2622.5,3.09104688]
[1723303739167,3.81252,2623.0,2622.5,3.09104688]
[1723303739569,3.0,2623.2,2622.6,0.07625803]
[1723303739774,5.4443,2623.3,2622.6,0.07625803]
[1723303740088,5.4443,2623.3,2622.7,0.24082449]
[1723303741390,1.90611,2623.2,2622.7,0.24082449]
[1723303742313,1.90594,2623.4,2622.8,1.98259879]
[1723303742486,1.90594,2623.4,2622.9,2.3462]
[1723303742688,1.90594,2623.4,2622.9,3.04363491]
[1723303742955,3.81193,2623.4,2622.9,3.04363491]
[1723303743107,1.90594,2623.4,2622.9,3.04363491]
[1723303745518,1.906,2623.3,2622.9,3.04363491]
[1723303746339,1.906,2623.3,2623.0,0.50262337]
[1723303746549,1.906,2623.3,2623.0,0.74300458]
[1723303747196,4.90581,2623.6,2623.0,0.74300458]
[1723303747625,4.90581,2623.6,2623.0,0.50262337]
[1723303747838,4.90581,2623.6,2622.6,2.85359349]
[1723303747839,1.144,2623.1,2622.6,2.85359349]
[1723303748046,1.144,2622.9,2622.4,4.25284]
[1723303748197,3.0503,2622.9,2622.7,0.24072046]
[1723303748476,1.144,2622.9,2622.4,2.3462]
[1723303748596,1.144,2622.9,2622.8,0.24049801]
[1723303749093,1.144,2622.9,2622.8,0.24050068]
[1723303749296,1.144,2622.9,2622.5,1.90656]
[1723303749497,1.144,2622.9,2622.8,0.24050068]
[1723303749738,1.90609,2623.2,2622.5,1.90656]
[1723303750036,3.81221,2623.2,2622.8,0.24050068]
[1723303750238,3.81221,2623.2,2622.6,0.615939]
[1723303750548,1.90609,2623.2,2622.6,0.615939]
[1723303750699,1.90609,2623.2,2622.7,0.24061377]
[1723303752655,1.90633,2622.9,2622.7,0.24061377]
[1723303752799,1.90621,2623.0,2622.7,0.24061377]
[1723303753307,1.90621,2623.0,2622.8,0.24050068]
[1723303753540,1.90634,2622.9,2622.5,0.425283]
[1723303754546,1.90621,2623.0,2622.5,0.425283]
[1723303754944,3.81248,2623.0,2622.5,0.425283]
[1723303755410,1.90621,2623.0,2622.5,0.425283]
[1723303756305,1.90633,2622.9,2622.5,0.425283]
[1723303756546,1.90621,2623.0,2622.5,0.425283]
[1723303757008,1.90621,2623.0,2622.6,0.4678123]
[1723303758606,3.81247,2623.0,2622.6,0.4678123]
[1723303758811,3.81247,2623.0,2622.4,2.3462]
[1723303758812,1.90633,2622.9,2622.4,2.3462]
[1723303760909,1.90637,2622.8,2622.4,2.3462]
[1723303762020,1.90637,2622.8,2622.5,0.24088265]
[1723303764228,1.90621,2623.0,2622.5,0.24088265]
[1723303764423,3.81247,2623.0,2622.5,0.49959092]
[1723303764741,1.90621,2623.0,2622.5,0.49959092]
[1723303767137,3.81247,2623.0,2622.5,0.49959092]
[1723303767327,3.81248,2623.0,2622.5,0.49959092]
[1723303767540,3.81248,2623.0,2622.5,0.24088265]
[1723303769750,4.95748,2623.0,2622.5,0.24088265]
[1723303770140,1.90629,2622.9,2622.5,0.24088265]
[1723303770660,3.05121,2623.0,2622.5,0.24088265]
[1723303771250,4.95749,2623.0,2622.5,0.24088265]
[1723303771471,3.05121,2623.0,2622.5,0.69025091]
[1723303772277,1.9064,2622.8,2622.5,0.69025091]
[1723303773458,4.95751,2623.0,2622.5,0.69025091]
[1723303773873,1.9063,2622.9,2622.5,0.69025091]
[1723303774365,4.35035,2623.3,2622.6,0.30364509]
[1723303774559,4.35035,2623.3,2622.6,4.39713096]
[1723303774560,1.145,2623.1,2622.6,4.39713096]
[1723303776086,1.145,2623.1,2622.7,1.90641]
[1723303776394,1.145,2623.1,2622.8,0.67835621]
[1723303777996,1.145,2623.1,2622.9,2.2518]
[1723303778199,3.05104,2623.3,2622.9,2.2518]
[1723303778511,3.05104,2623.3,2623.0,0.2383933]
[1723303779651,1.145,2623.3,2623.0,0.2383933]
[1723303779935,4.28847,2623.5,2623.0,0.2383933]
[1723303780144,1.145,2623.3,2623.0,0.2383933]
[1723303781433,1.145,2623.3,2623.0,0.72964312]
[1723303782344,3.051,2623.3,2623.0,0.2383933]
[1723303782546,1.90607,2623.2,2622.7,2.2518]
[1723303782841,1.90606,2623.2,2623.1,0.23828024]
[1723303783003,1.90606,2623.2,2622.7,2.2518]
[1723303783348,1.145,2623.1,2622.7,2.858282]
[1723303783511,1.145,2623.1,2622.8,0.23855815]
[1723303783723,3.05115,2623.1,2622.7,2.858282]
[1723303784038,3.05115,2623.1,2622.9,0.23074103]
[1723303784207,3.05115,2623.1,2622.8,0.23085411]
[1723303784552,4.28875,2623.1,2622.9,0.23074103]
[1723303784831,4.28875,2623.1,2622.4,2.2518]
[1723303784832,1.90621,2623.0,2622.4,2.2518]
[1723303785032,3.05133,2622.9,2622.4,2.2518]
[1723303788868,1.90636,2622.8,2622.4,2.2518]
[1723303789728,1.145,2622.9,2622.4,2.2518]
[1723303791470,3.0513,2622.9,2622.4,2.2518]
[1723303791642,3.0513,2622.9,2622.4,2.667648]
[1723303791843,1.145,2622.9,2622.4,4.574268]
[1723303792048,1.145,2622.9,2622.5,0.23095062]
[1723303792250,3.05129,2622.9,2622.5,0.23095062]
[1723303795305,4.17538,2622.8,2622.5,0.23095062]
[1723303795505,4.17538,2622.8,2622.2,1.90677]
[1723303795806,4.17538,2622.8,2622.6,0.23089808]
[1723303795991,1.90665,2622.4,2622.0,7.49]
[1723303796191,5.32065,2622.4,2621.8,4.20024]
[1723303796700,3.05165,2622.4,2621.8,6.10727]
[1723303796908,1.145,2622.4,2621.9,1.907]
[1723303797078,1.145,2622.4,2621.9,2.517723]
[1723303797423,1.145,2622.4,2621.9,0.610723]
[1723303797808,5.32054,2622.6,2621.9,0.610723]
[1723303797989,5.32039,2622.8,2622.1,2.2932]
[1723303798312,3.05139,2622.8,2622.2,1.98303183]
[1723303798995,4.9578,2622.8,2622.2,1.98303183]
[1723303799632,1.90648,2622.7,2622.2,0.07626183]
[1723303800827,1.90652,2622.6,2622.1,2.2932]
[1723303801207,1.90652,2622.6,2622.1,2.7742803]
[1723303802033,1.90662,2622.5,2622.1,2.2932]
[1723303803599,1.90674,2622.3,2621.9,2.2932]
[1723303803805,1.90706,2621.9,2621.5,2.2932]
[1723303804963,1.90706,2621.9,2621.3,2.2932]
[1723303805237,1.90706,2621.9,2621.4,1.90736]
[1723303807046,1.90706,2621.9,2621.3,2.2932]
[1723303807232,1.90706,2621.9,2621.3,4.20064]
[1723303807550,1.90706,2621.9,2621.4,0.61081]
[1723303809487,1.90706,2621.9,2621.3,2.2932]
[1723303809488,1.90723,2621.6,2621.3,2.2932]
[1723303809697,1.90723,2621.6,2621.1,1.90759]
[1723303809698,1.90723,2621.6,2621.1,4.20079]
[1723303810439,1.90723,2621.6,2621.1,5.34579]
[1723303810887,2.269,2621.8,2621.1,5.34576]
[1723303811058,7.23287,2622.0,2621.3,1.9074]
[1723303811260,1.90701,2621.9,2621.3,1.9074]
[1723303811492,4.18087,2622.0,2621.3,1.9074]
[1723303811646,6.08786,2622.0,2621.4,0.2441976]
[1723303812170,4.18087,2622.0,2621.4,0.2441976]
[1723303812377,6.08787,2622.0,2621.4,0.2441976]
[1723303812591,1.90703,2621.9,2621.4,0.2441976]
[1723303813512,4.90667,2622.4,2621.8,1.90708]
[1723303813513,1.90669,2622.4,2621.8,1.90708]
[1723303813662,4.95808,2622.6,2622.0,2.4284]
[1723303813863,3.05152,2622.6,2622.0,4.33534]
[1723303814058,3.05152,2622.6,2622.1,0.07627138]
[1723303814262,3.05152,2622.6,2622.0,5.04345229]
[1723303814519,3.05152,2622.6,2622.1,1.90685]
[1723303814810,3.05152,2622.6,2622.2,0.07626407]
[1723303815477,3.05152,2622.6,2622.2,0.58060101]
[1723303815669,3.05152,2622.6,2622.0,2.50466415]
[1723303815863,3.05152,2622.6,2622.0,4.41158415]
[1723303815864,1.90652,2622.6,2622.0,4.41158415]
[1723303816467,1.145,2622.7,2622.0,4.41158415]
[1723303816468,1.145,2622.7,2622.2,1.90679]
[1723303816767,1.145,2622.7,2622.2,1.98305198]
[1723303816959,1.90659,2622.5,2622.0,2.4284]
[1723303817190,1.90659,2622.5,2622.0,0.548037]
[1723303817191,1.90669,2622.4,2622.0,0.548037]
[1723303817413,1.90669,2622.4,2621.8,2.4284]
[1723303817577,3.05158,2622.5,2621.8,4.33544]
[1723303817777,1.145,2622.5,2621.9,2.13149631]
[1723303818119,3.05163,2622.5,2622.0,0.64669363]
[1723303818281,1.145,2622.5,2622.0,0.64669363]
[1723303818479,1.145,2622.5,2622.1,0.22432824]
[1723303818721,1.9067,2622.4,2622.1,0.22432824]
[1723303819497,1.145,2622.5,2622.1,0.22432824]
[1723303819665,2.2739,2622.7,2622.1,0.22432824]
[1723303819666,1.145,2622.7,2622.2,2.4284]
[1723303820015,1.145,2622.7,2622.2,4.41144404]
[1723303820315,1.145,2622.7,2622.3,0.22397946]
[1723303820471,1.90639,2622.8,2622.3,0.30024095]
[1723303820788,1.90639,2622.8,2622.3,0.07626123]
[1723303820965,1.90639,2622.8,2622.4,0.22386633]
[1723303821165,1.145,2622.9,2622.4,0.22386633]
[1723303821366,1.145,2622.9,2622.4,0.67976396]
[1723303821975,3.05133,2622.9,2622.4,0.67976396]
[1723303822179,3.05133,2622.9,2622.4,0.22386633]
[1723303822482,1.90647,2622.7,2622.2,2.4284]
[1723303822690,1.90647,2622.7,2622.5,0.22375322]
[1723303822893,1.90647,2622.7,2622.2,4.33518]
[1723303823087,4.95767,2622.9,2622.2,4.33518]
[1723303823288,4.95767,2622.9,2622.3,0.87595868]
[1723303823925,1.90622,2623.0,2622.3,4.76559674]
[1723303824135,3.05122,2623.0,2622.3,2.85888674]
[1723303824334,1.9063,2622.9,2622.4,0.64322867]
[1723303824507,1.90636,2622.8,2622.4,0.64322867]
[1723303824709,1.90636,2622.8,2622.5,0.22375322]
[1723303825505,1.90643,2622.7,2622.5,0.22375322]
[1723303825708,1.90643,2622.7,2622.2,2.4284]
[1723303825904,1.9063,2622.9,2622.1,2.18462219]
[1723303825905,1.90659,2622.5,2622.1,0.27780219]
[1723303826110,1.90659,2622.5,2622.3,0.22397946]
[1723303826111,1.145,2622.4,2622.3,0.22397946]
[1723303826346,1.90659,2622.5,2622.2,0.22409259]
[1723303826512,1.145,2622.6,2622.3,0.22397946]
[1723303827020,1.145,2622.6,2622.0,9.39691]
[1723303827021,3.05151,2622.6,2622.4,0.22386633]
[1723303827220,1.145,2622.6,2622.1,1.90684]
[1723303827408,1.90643,2622.7,2622.2,2.72875471]
[1723303827621,1.90643,2622.7,2622.2,2.72875179]
[1723303827818,1.90643,2622.7,2622.2,4.03528887]
[1723303828233,1.90651,2622.6,2622.2,4.03528887]
[1723303828854,1.90643,2622.7,2622.2,3.95902967]
[1723303829232,3.81292,2622.7,2622.2,3.95902967]
[1723303829435,1.90643,2622.7,2622.2,3.95902967]